fUST/lending_fUST_20250804
["ID","MTS","AMOUNT","RATE_DAILY","PERIOD"]
[377279727,1754316650229,-782.19,0.00033424,2]
[377279729,1754316650239,-460.0,0.00033424,2]
[377279731,1754316650248,-673.84,0.00033424,2]
[377279733,1754316650258,-601.05,0.00033424,2]
[377279735,1754316650268,-460.0,0.00033424,2]
[377279737,1754316650277,-460.0,0.00033424,2]
[377279739,1754316650289,-382.42233538,0.00033424,2]
[377279741,1754316650299,-460.0,0.00033424,2]
[377279743,1754316650308,-460.0,0.00033424,2]
[377279745,1754316650318,-460.0,0.00033424,2]
[377279747,1754316650328,-3099.74,0.00033424,2]
[377279749,1754316650337,-460.0,0.00033424,2]
[377279751,1754316650347,-460.0,0.00033424,2]
[377279753,1754316650358,-2316.25,0.00033424,2]
[377279755,1754316650368,-1494.05,0.00033424,2]
[377279757,1754316650378,-460.0,0.00033424,2]
[377279759,1754316650388,-738.42,0.00033424,2]
[377279761,1754316650397,-460.0,0.00033424,2]
[377279763,1754316650407,-500.0,0.00033424,2]
[377279765,1754316650416,-151.0,0.00033424,14]
[377279767,1754316650425,-460.0,0.00033424,2]
[377279769,1754316650435,-3445.67,0.00033424,2]
[377279771,1754316650443,-8730.47,0.00033424,2]
[377279773,1754316650453,-460.0,0.00033424,2]
[377279775,1754316650463,-834.81,0.00033424,2]
[377279777,1754316650472,-460.0,0.00033424,2]
[377279779,1754316650483,-460.0,0.00033424,2]
[377279781,1754316650492,-460.0,0.00033424,2]
[377279783,1754316650502,-460.0,0.00033424,2]
[377279785,1754316650512,-460.0,0.00033424,2]
[377279787,1754316650521,-460.0,0.00033424,2]
[377279789,1754316650530,-460.0,0.00033424,2]
[377279791,1754316650541,-723.55,0.00033424,2]
[377279793,1754316650550,-460.0,0.00033424,2]
[377279795,1754316650560,-460.0,0.00033424,2]
[377279797,1754316650570,-391.18133342,0.00033424,2]
[377279799,1754316650579,-460.0,0.00033424,2]
[377279801,1754316650589,-460.0,0.00033424,2]
[377279803,1754316650598,-1619.63,0.00033424,2]
[377279804,1754316650608,-460.0,0.00033424,2]
[377279806,1754316650617,-460.0,0.00033424,2]
[377279809,1754316650627,-965.76,0.00033424,2]
[377279811,1754316650636,-460.0,0.00033424,2]
[377279812,1754316650646,-609.68,0.00033424,2]
[377279814,1754316650656,-553.11,0.00033424,2]
[377279817,1754316650665,-460.0,0.00033424,2]
[377279818,1754316650675,-964.21,0.00033424,2]
[377279821,1754316650684,-460.0,0.00033424,2]
[377279822,1754316650694,-460.0,0.00033424,2]
[377279824,1754316650703,-460.0,0.00033424,2]
[377279826,1754316650712,-1007.66,0.00033424,2]
[377279828,1754316650721,-345.66840108,0.00033424,2]
[377279830,1754316650731,-1077.44,0.00033424,2]
[377279832,1754316650740,-1800.0,0.00033447,7]
[377279834,1754316650749,-159.561668,0.00033523,14]
[377279836,1754316650758,-946.40033887,0.00033602,2]
[377279838,1754316650768,-151.0,0.00033621,14]
[377279840,1754316650778,-151.0,0.00033621,14]
[377279842,1754316650789,-325.0,0.00033636,7]
[377279844,1754316650798,-151.0,0.00033657,14]
[377279846,1754316650808,-151.0,0.00033669,14]
[377279848,1754316650817,-151.0,0.00033671,14]
[377279850,1754316650827,-3945.07854477,0.00033693,29]
[377279852,1754316650837,-151.0,0.00033698,14]
[377279854,1754316650846,-151.0,0.00033698,14]
[377279856,1754316650856,-151.0,0.00033698,14]
[377279858,1754316650865,-151.0,0.00033698,14]
[377279860,1754316650875,-151.0,0.00033698,14]
[377279862,1754316650884,-151.0,0.00033698,14]
[377279864,1754316650893,-460.0,0.00033698,2]
[377279866,1754316650902,-460.0,0.00033698,2]
[377279868,1754316650912,-460.0,0.00033698,2]
[377279870,1754316650921,-460.0,0.00033698,2]
[377279872,1754316650931,-460.0,0.00033698,2]
[377279874,1754316650940,-460.0,0.00033698,2]
[377279876,1754316650950,-460.0,0.00033698,2]
[377279878,1754316650960,-460.0,0.00033698,2]
[377279880,1754316650970,-460.0,0.00033698,2]
[377279882,1754316650979,-460.0,0.00033698,2]
[377279884,1754316650990,-460.0,0.00033698,2]
[377279886,1754316651004,-161.27310143,0.00033698,2]
[377279888,1754316651015,-460.0,0.00033698,2]
[377279890,1754316651024,-460.0,0.00033698,2]
[377279891,1754316651036,-587.52,0.00033698,2]
[377279893,1754316651047,-460.0,0.00033698,2]
[377279896,1754316651057,-460.0,0.00033698,2]
[377279897,1754316651067,-460.0,0.00033698,2]
[377279899,1754316651080,-460.0,0.00033698,2]
[377279901,1754316651090,-460.0,0.00033698,2]
[377279902,1754316651100,-460.0,0.00033698,2]
[377279904,1754316651110,-556.23,0.00033698,2]
[377279906,1754316651119,-1007.11,0.00033698,2]
[377279908,1754316651129,-460.0,0.00033698,2]
[377279910,1754316651139,-460.0,0.00033698,2]
[377279912,1754316651149,-596.33,0.00033698,2]
[377279914,1754316651158,-517.79373378,0.00033698,2]
[377279916,1754316651169,-564.58996918,0.00033698,2]
[377279918,1754316651178,-1057.6,0.00033698,2]
[377279928,1754316651188,-460.0,0.00033698,2]
[377279931,1754316651287,-460.0,0.00033698,2]
[377279932,1754316651298,-460.0,0.00033698,2]
[377279934,1754316651308,-1278.5,0.00033698,2]
[377279936,1754316651318,-460.0,0.00033698,2]
[377279938,1754316651327,-460.0,0.00033698,2]
[377279940,1754316651336,-460.0,0.00033698,2]
[377279942,1754316651346,-460.0,0.00033698,2]
[377279944,1754316651355,-599.14,0.00033698,2]
[377279946,1754316651365,-507.5,0.00033698,2]
[377279948,1754316651375,-460.0,0.00033698,2]
[377279950,1754316651385,-460.0,0.00033698,2]
[377279952,1754316651394,-460.0,0.00033698,2]
[377279954,1754316651403,-460.0,0.00033698,2]
[377279956,1754316651413,-460.0,0.00033698,2]
[377279958,1754316651422,-9161.73,0.00033698,2]
[377279960,1754316651432,-460.0,0.00033698,2]
[377279962,1754316651441,-750.79,0.00033698,2]
[377279964,1754316651450,-460.0,0.00033698,2]
[377279966,1754316651460,-480.35,0.00033698,2]
[377279968,1754316651469,-460.0,0.00033698,2]
[377279970,1754316651480,-1605.31,0.00033698,2]
[377279972,1754316651489,-460.0,0.00033698,2]
[377279974,1754316651498,-460.0,0.00033698,2]
[377279975,1754316651508,-460.0,0.00033698,2]
[377279977,1754316651517,-590.38303799,0.00033698,2]
[377279979,1754316651526,-473.05,0.00033698,2]
[377279981,1754316651536,-739.1,0.00033698,2]
[377279983,1754316651546,-460.0,0.00033698,2]
[377279985,1754316651555,-462.54,0.00033698,2]
[377279987,1754316651565,-460.0,0.00033698,2]
[377279988,1754316651574,-500.95370719,0.00033698,2]
[377279990,1754316651584,-460.0,0.00033698,2]
[377279992,1754316651593,-460.0,0.00033698,2]
[377279994,1754316651603,-599.3,0.00033698,2]
[377279997,1754316651616,-561.74783726,0.00033698,2]
[377279998,1754316651625,-153.22832876,0.00033698,2]
[377280000,1754316651635,-489.62915239,0.00033698,2]
[377280002,1754316651645,-460.0,0.00033698,2]
[377280004,1754316651654,-1294.03,0.00033698,2]
[377280006,1754316651663,-460.0,0.00033698,2]
[377280008,1754316651673,-460.0,0.00033698,2]
[377280010,1754316651682,-460.0,0.00033698,2]
[377280011,1754316651691,-460.0,0.00033698,2]
[377280012,1754316651701,-1169.29,0.00033698,2]
[377280013,1754316651709,-460.0,0.00033698,2]
[377280014,1754316651718,-511.36984287,0.00033698,2]
[377280015,1754316651727,-460.0,0.00033698,2]
[377280016,1754316651736,-460.0,0.00033698,2]
[377280017,1754316651745,-1207.21,0.00033698,2]
[377280018,1754316651754,-494.56,0.00033698,2]
[377280019,1754316651763,-460.0,0.00033698,2]
[377280020,1754316651772,-460.0,0.00033698,2]
[377280021,1754316651781,-1264.88,0.00033698,2]
[377280022,1754316651792,-2520.90917645,0.00033698,2]
[377280030,1754316651942,-587.95082355,0.00033698,2]
[377280032,1754316651952,-460.0,0.00033698,2]
[377280034,1754316651961,-460.0,0.00033698,2]
[377280036,1754316651971,-460.0,0.00033698,2]
[377280038,1754316651981,-780.78,0.00033698,2]
[377280040,1754316651990,-5113.23159745,0.00033698,2]
[377280042,1754316652006,-4046.23840255,0.00033698,2]
[377280044,1754316652015,-460.0,0.00033698,2]
[377280046,1754316652025,-460.0,0.00033698,2]
[377280048,1754316652034,-460.0,0.00033698,2]
[377280050,1754316652047,-460.0,0.00033698,2]
[377280052,1754316652057,-460.0,0.00033698,2]
[377280054,1754316652067,-515.58,0.00033698,2]
[377280056,1754316652078,-460.0,0.00033698,2]
[377280058,1754316652088,-460.0,0.00033698,2]
[377280060,1754316652098,-460.0,0.00033698,2]
[377280062,1754316652107,-493.17736483,0.00033698,2]
[377280064,1754316652117,-460.0,0.00033698,2]
[377280066,1754316652126,-460.0,0.00033698,2]
[377280068,1754316652136,-460.0,0.00033698,2]
[377280070,1754316652146,-460.0,0.00033698,2]
[377280072,1754316652155,-709.35,0.00033698,2]
[377280074,1754316652166,-460.0,0.00033698,2]
[377280076,1754316652175,-733.65,0.00033698,2]
[377280078,1754316652185,-460.0,0.00033698,2]
[377280080,1754316652195,-460.0,0.00033698,2]
[377280082,1754316652205,-529.02,0.00033698,2]
[377280084,1754316652215,-481.39,0.00033698,2]
[377280086,1754316652225,-460.0,0.00033698,2]
[377280088,1754316652235,-965.33,0.00033698,2]
[377280090,1754316652245,-1386.02,0.00033698,2]
[377280092,1754316652255,-1219.94,0.00033698,2]
[377280094,1754316652264,-460.0,0.00033698,2]
[377280096,1754316652274,-460.0,0.00033698,2]
[377280098,1754316652283,-460.0,0.00033698,2]
[377280100,1754316652296,-551.78,0.00033698,2]
[377280102,1754316652305,-460.0,0.00033698,2]
[377280104,1754316652315,-930.95,0.00033698,2]
[377280106,1754316652323,-3348.93849888,0.00033698,2]
[377280120,1754316652462,-5611.60011599,0.0003315,2]
[377280123,1754316652473,-469.47107365,0.0003315,2]
[377280125,1754316652484,-144.77881036,0.0003315,2]
[377280127,1754316652494,-179.83761066,0.00033424,2]
[377280152,1754316652736,-218.12637201,0.00033424,2]
[377280192,1754316653131,-380.0,0.00032876,2]
[377280203,1754316653221,-1020.55924771,0.00031731,2]
[377280205,1754316653232,-1341.64666871,0.00031731,2]
[377280228,1754316653462,-21978.48372315,0.00031731,2]
[377280230,1754316653474,-559.31036043,0.00031731,2]
[377280232,1754316653483,-80.0,0.00032876,2]
[377280234,1754316653492,-460.0,0.00032876,2]
[377280236,1754316653502,-460.0,0.00032876,2]
[377280238,1754316653511,-460.0,0.00032876,2]
[377280240,1754316653521,-460.0,0.00032876,2]
[377280242,1754316653530,-318.52988683,0.00032876,2]
[377280244,1754316653541,-460.0,0.00032876,2]
[377280246,1754316653550,-262.10867834,0.00032876,2]
[377280248,1754316653560,-460.0,0.00032876,2]
[377280250,1754316653569,-460.0,0.0003315,2]
[377280252,1754316653580,-460.0,0.0003315,2]
[377280255,1754316653599,-460.0,0.0003315,2]
[377280257,1754316653613,-460.0,0.0003315,2]
[377280260,1754316653629,-572.38,0.0003315,2]
[377280263,1754316653645,-460.0,0.0003315,2]
[377280265,1754316653662,-460.0,0.0003315,2]
[377280268,1754316653680,-2709.9462233,0.0003315,2]
[377280271,1754316653696,-5827.88601733,0.00033424,2]
[377280273,1754316653711,-460.0,0.00033424,2]
[377280276,1754316653727,-460.0,0.00033424,2]
[377280279,1754316653743,-460.0,0.00033424,2]
[377280281,1754316653756,-460.0,0.00033424,2]
[377280282,1754316653769,-460.0,0.00033424,2]
[377280283,1754316653785,-460.0,0.00033424,2]
[377280284,1754316653803,-633.68150112,0.00033698,2]
[377280285,1754316653821,-460.0,0.00033698,2]
[377280286,1754316653835,-460.0,0.00033698,2]
[377280287,1754316653847,-526.02,0.00033698,2]
[377280288,1754316653862,-591.85,0.00033698,2]
[377280289,1754316653878,-9274.27,0.00033698,2]
[377280290,1754316653891,-460.0,0.00033698,2]
[377280291,1754316653906,-5364.1,0.00033698,2]
[377280292,1754316653918,-460.0,0.00033698,2]
[377280293,1754316653930,-460.0,0.00033698,2]
[377280294,1754316653943,-460.0,0.00033698,2]
[377280295,1754316653956,-460.0,0.00033698,2]
[377280296,1754316653969,-460.0,0.00033698,2]
[377280297,1754316653982,-460.0,0.00033698,2]
[377280298,1754316653997,-460.0,0.00033698,2]
[377280299,1754316654013,-460.0,0.00033698,2]
[377280300,1754316654027,-460.0,0.00033698,2]
[377280301,1754316654040,-460.0,0.00033698,2]
[377280302,1754316654054,-460.0,0.00033698,2]
[377280303,1754316654067,-856.49,0.00033698,2]
[377280304,1754316654082,-930.07,0.00033698,2]
[377280305,1754316654095,-695.73,0.00033698,2]
[377280306,1754316654108,-1154.8,0.00033698,2]
[377280307,1754316654121,-460.0,0.00033698,2]
[377280308,1754316654134,-460.0,0.00033698,2]
[377280309,1754316654147,-460.0,0.00033698,2]
[377280310,1754316654161,-460.0,0.00033698,2]
[377280311,1754316654175,-460.0,0.00033698,2]
[377280312,1754316654187,-651.47,0.00033698,2]
[377280313,1754316654200,-2270.35,0.00033698,2]
[377280314,1754316654214,-460.0,0.00033698,2]
[377280315,1754316654228,-460.0,0.00033698,2]
[377280316,1754316654241,-1069.09,0.00033698,2]
[377280317,1754316654255,-607.93,0.00033698,2]
[377280318,1754316654265,-460.0,0.00033698,2]
[377280319,1754316654275,-1033.39,0.00033698,2]
[377280320,1754316654284,-460.0,0.00033698,2]
[377280321,1754316654296,-460.0,0.00033698,2]
[377280322,1754316654306,-913.86,0.00033698,2]
[377280323,1754316654316,-460.0,0.00033698,2]
[377280324,1754316654325,-460.0,0.00033698,2]
[377280325,1754316654335,-726.74,0.00033698,2]
[377280326,1754316654345,-1147.99,0.00033698,2]
[377280327,1754316654355,-4540.55,0.00033698,2]
[377280328,1754316654365,-152.853105,0.00033698,14]
[377280329,1754316654375,-1572.21,0.00033698,2]
[377280330,1754316654384,-460.0,0.00033698,2]
[377280331,1754316654394,-782.19,0.00033698,2]
[377280332,1754316654403,-460.0,0.00033698,2]
[377280333,1754316654413,-673.84,0.00033698,2]
[377280334,1754316654422,-601.05,0.00033698,2]
[377280335,1754316654432,-460.0,0.00033698,2]
[377280336,1754316654441,-460.0,0.00033698,2]
[377280337,1754316654451,-460.0,0.00033698,2]
[377280338,1754316654460,-460.0,0.00033698,2]
[377280339,1754316654470,-460.0,0.00033698,2]
[377280340,1754316654480,-3099.74,0.00033698,2]
[377280341,1754316654489,-460.0,0.00033698,2]
[377280342,1754316654498,-460.0,0.00033698,2]
[377280343,1754316654507,-2316.25,0.00033698,2]
[377280344,1754316654517,-1494.05,0.00033698,2]
[377280345,1754316654526,-460.0,0.00033698,2]
[377280346,1754316654536,-738.42,0.00033698,2]
[377280351,1754316654781,-460.0,0.00033698,2]
[377280352,1754316654800,-350.34126159,0.00033698,2]
[377280354,1754316654815,-149.65873841,0.00033698,2]
[377280356,1754316654824,-151.0,0.00033698,14]
[377280358,1754316654834,-460.0,0.00033698,2]
[377280359,1754316654843,-430.00619273,0.00033698,2]
[377280360,1754316655660,-193.73718936,0.00033698,2]
[377280362,1754316655672,-2821.92661791,0.00033698,2]
[377280363,1754316655681,-460.0,0.00033698,2]
[377280365,1754316655691,-834.81,0.00033698,2]
[377280367,1754316655701,-326.61294521,0.00033698,2]
[377280369,1754316655710,-460.0,0.00033698,2]
[377280371,1754316655720,-460.0,0.00033698,2]
[377280373,1754316655731,-460.0,0.00033698,2]
[377280374,1754316655740,-460.0,0.00033698,2]
[377280376,1754316655751,-460.0,0.00033698,2]
[377280378,1754316655762,-460.0,0.00033698,2]
[377280380,1754316655772,-723.55,0.00033698,2]
[377280382,1754316655783,-460.0,0.00033698,2]
[377280384,1754316655795,-460.0,0.00033698,2]
[377280386,1754316655805,-460.0,0.00033698,2]
[377280387,1754316655817,-460.0,0.00033698,2]
[377280388,1754316655827,-460.0,0.00033698,2]
[377280389,1754316655837,-324.1597799,0.00033698,2]
[377280390,1754316655846,-965.76,0.00033698,2]
[377280391,1754316655856,-460.0,0.00033698,2]
[377280392,1754316655866,-553.11,0.00033698,2]
[377280393,1754316655875,-460.0,0.00033698,2]
[377280394,1754316655884,-609.68,0.00033698,2]
[377280396,1754316655894,-964.21,0.00033698,2]
[377280397,1754316655903,-460.0,0.00033698,2]
[377280398,1754316655912,-460.0,0.00033698,2]
[377280399,1754316655922,-460.0,0.00033698,2]
[377280400,1754316655931,-1007.66,0.00033698,2]
[377280401,1754316655941,-1077.44,0.00033698,2]
[377280402,1754316655951,-6225.85,0.00033698,2]
[377280403,1754316655961,-460.0,0.00033698,2]
[377280404,1754316655971,-460.0,0.00033698,2]
[377280405,1754316656187,-460.0,0.00033698,2]
[377280406,1754316656198,-460.0,0.00033698,2]
[377280407,1754316656207,-207.96253821,0.00033698,2]
[377280424,1754316734506,327.7800722,0.00032945,30]
[377280425,1754316734657,153.0,0.00032945,30]
[377280426,1754316734685,1162.1646553,0.00032945,30]
[377280427,1754316735459,153.549557,0.00032945,30]
[377280428,1754316755106,-194.0,0.00030984,2]
[377280429,1754316772993,178.27,0.00027464,15]
[377280430,1754316773099,178.27,0.00027564,15]
[377280431,1754316773286,178.28389945,0.00027664,15]
[377280432,1754316794450,426.496133,0.00032945,30]
[377280433,1754316794480,400.6904576,0.00032977,30]
[377280434,1754316796243,153.0,0.00032945,30]
[377280435,1754316854149,153.0,0.00032945,30]
[377280436,1754316855018,159.4497964,0.00032977,30]
[377280437,1754316867361,478.14327993,0.0003001,7]
[377280438,1754316869542,295.0418067,0.00029355,2]
[377280439,1754316881293,5213.28,0.00032876,120]
[377280440,1754316907018,-165.95780041,0.000308,2]
[377280441,1754316907055,-3624.4440663,0.000309,23]
[377280442,1754316907084,-300.0,0.00030972,2]
[377280443,1754316907114,-400.0,0.00030972,2]
[377280444,1754316907143,-1200.0,0.00030972,2]
[377280445,1754316907173,-200.0,0.00030973,5]
[377280446,1754316907208,-500.0,0.00030973,5]
[377280447,1754316907238,-502.37147298,0.00030973,5]
[377280448,1754316907270,-500.0,0.00030973,5]
[377280449,1754316907300,-328.4,0.00030974,10]
[377280450,1754316907329,-273.67,0.00030974,10]
[377280451,1754316907358,-228.05,0.00030974,10]
[377280452,1754316907386,-160.0,0.00030983,2]
[377280453,1754316907414,-500.0,0.00030983,2]
[377280454,1754316907569,-500.0,0.00030983,2]
[377280455,1754316907601,-500.0,0.00030983,2]
[377280456,1754316907624,-165.95780041,0.00030983,2]
[377280457,1754316907635,-334.04219959,0.00030983,2]
[377280458,1754316907645,-500.0,0.00030983,2]
[377280459,1754316907654,-500.0,0.00030983,2]
[377280460,1754316907663,-500.0,0.00030983,2]
[377280461,1754316907671,-189.26213995,0.00030983,2]
[377280462,1754316907680,-500.0,0.00030983,2]
[377280463,1754316907690,-500.0,0.00030983,2]
[377280464,1754316907699,-500.0,0.00030983,2]
[377280465,1754316907709,-101.13972676,0.00030983,2]
[377280466,1754316907839,-300.0,0.00030983,2]
[377280467,1754316907855,-98.86027324,0.00030983,2]
[377280468,1754316907865,-301.13972676,0.00030983,2]
[377280469,1754316907878,-198.86027324,0.00030983,2]
[377280470,1754316907887,-500.0,0.00030983,2]
[377280471,1754316907898,-304.25681926,0.00030983,2]
[377280472,1754316907907,-196.8829075,0.00030983,2]
[377280473,1754316907918,-200.0,0.00030983,2]
[377280474,1754316907930,-103.1170925,0.00030983,2]
[377280475,1754316907940,-396.8829075,0.00030983,2]
[377280476,1754316907974,-103.1170925,0.00030983,2]
[377280477,1754316908008,-500.0,0.00030983,2]
[377280478,1754316908044,-500.0,0.00030983,2]
[377280479,1754316908073,-385.40360858,0.00030983,2]
[377280480,1754316908105,-500.0,0.00030983,2]
[377280481,1754316908139,-500.0,0.00030983,2]
[377280482,1754316908170,-500.0,0.00030983,2]
[377280483,1754316908204,-632.44197692,0.00030983,2]
[377280484,1754316908235,-500.0,0.00030983,2]
[377280485,1754316908274,-500.0,0.00030983,2]
[377280486,1754316908308,-500.0,0.00030983,2]
[377280487,1754316908340,-500.0,0.00030983,2]
[377280488,1754316908369,-500.0,0.00030983,2]
[377280489,1754316908403,-500.0,0.00030983,2]
[377280490,1754316908435,-500.0,0.00030983,2]
[377280491,1754316908466,-500.0,0.00030983,2]
[377280492,1754316908501,-500.0,0.00030983,2]
[377280493,1754316908531,-212.16143562,0.00030983,2]
[377280494,1754316908561,-500.0,0.00030983,2]
[377280495,1754316908595,-500.0,0.00030983,2]
[377280496,1754316908627,-500.0,0.00030983,2]
[377280497,1754316908649,-500.0,0.00030983,2]
[377280498,1754316908659,-2.37147298,0.00030983,2]
[377280499,1754316908675,-497.62852702,0.00030983,2]
[377280500,1754316908685,-2.37147298,0.00030983,2]
[377280501,1754316908696,-328.4,0.00030983,2]
[377280502,1754316908711,-169.22852702,0.00030983,2]
[377280503,1754316908720,-104.44147298,0.00030983,2]
[377280504,1754316908732,-228.05,0.00030983,2]
[377280505,1754316908747,-160.0,0.00030983,2]
[377280506,1754316908764,-7.50852702,0.00030983,2]
[377280507,1754316908773,-492.49147298,0.00030983,2]
[377280508,1754316908825,-7.50852702,0.00030983,2]
[377280509,1754316908836,-492.49147298,0.00030983,2]
[377280510,1754316908851,-7.50852702,0.00030983,2]
[377280511,1754316908860,-492.49147298,0.00030983,2]
[377280512,1754316908872,-7.50852702,0.00030983,2]
[377280513,1754316908881,-226.7047936,0.00030983,2]
[377280514,1754316908937,-103.1170925,0.00030983,2]
[377280515,1754316908948,-170.1781139,0.00030983,2]
[377280516,1754316908959,-329.8218861,0.00030983,2]
[377280517,1754316908970,-170.1781139,0.00030983,2]
[377280518,1754316908980,-329.8218861,0.00030983,2]
[377280519,1754316908999,-170.1781139,0.00030983,2]
[377280520,1754316909012,-215.22549468,0.00030983,2]
[377280521,1754316909028,-284.77450532,0.00030983,2]
[377280522,1754316909038,-215.22549468,0.00030983,2]
[377280523,1754316909053,-284.77450532,0.00030983,2]
[377280524,1754316909063,-215.22549468,0.00030983,2]
[377280525,1754316909074,-284.77450532,0.00030983,2]
[377280526,1754316909083,-215.22549468,0.00030983,2]
[377280527,1754316909104,-284.77450532,0.00030983,2]
[377280528,1754316909113,-347.6674716,0.00030983,2]
[377280529,1754316909124,-152.3325284,0.00030983,2]
[377280530,1754316909133,-347.6674716,0.00030983,2]
[377280531,1754316909151,-152.3325284,0.00030983,2]
[377280532,1754316909161,-347.6674716,0.00030983,2]
[377280533,1754316909173,-152.3325284,0.00030983,2]
[377280534,1754316909181,-347.6674716,0.00030983,2]
[377280535,1754316909197,-152.3325284,0.00030983,2]
[377280536,1754316909206,-347.6674716,0.00030983,2]
[377280537,1754316909218,-152.3325284,0.00030983,2]
[377280538,1754316909227,-347.6674716,0.00030983,2]
[377280539,1754316909240,-152.3325284,0.00030983,2]
[377280540,1754316909249,-347.6674716,0.00030983,2]
[377280541,1754316909265,-152.3325284,0.00030983,2]
[377280542,1754316909275,-347.6674716,0.00030983,2]
[377280543,1754316909296,-149.17810446,0.00030983,2]
[377280544,1754316909306,-350.82189554,0.00030983,2]
[377280545,1754316909318,-149.17810446,0.00030983,2]
[377280546,1754316909327,-350.82189554,0.00030983,2]
[377280547,1754316909339,-149.17810446,0.00030983,2]
[377280548,1754316909349,-62.98333116,0.00030983,2]
[377280549,1754316909365,-437.01666884,0.00030983,2]
[377280550,1754316909374,-62.98333116,0.00030983,2]
[377280551,1754316909386,-437.01666884,0.00030983,2]
[377280552,1754316909395,-62.98333116,0.00030983,2]
[377280553,1754316909407,-437.01666884,0.00030983,2]
[377280554,1754316909416,-62.98333116,0.00030983,2]
[377280555,1754316909428,-333.75177276,0.00030983,2]
[377280556,1754316915433,306.0,0.00032977,30]
[377280557,1754316917857,-504.24656835,0.00030973,5]
[377280558,1754316917891,-103.26489608,0.00030983,2]
[377280559,1754316917924,-500.0,0.00030983,2]
[377280560,1754316917956,-500.0,0.00030983,2]
[377280561,1754316917986,-500.0,0.00030983,2]
[377280562,1754316918023,-500.0,0.00030983,2]
[377280563,1754316918054,-500.0,0.00030983,2]
[377280564,1754316918087,-500.0,0.00030983,2]
[377280565,1754316918122,-500.0,0.00030983,2]
[377280566,1754316918154,-500.0,0.00030983,2]
[377280567,1754316918189,-500.0,0.00030983,2]
[377280568,1754316918225,-500.0,0.00030983,2]
[377280569,1754316918402,-500.0,0.00030983,2]
[377280570,1754316918438,-500.0,0.00030983,2]
[377280571,1754316918473,-500.0,0.00030983,2]
[377280572,1754316918504,-500.0,0.00030983,2]
[377280573,1754316918541,-500.0,0.00030983,2]
[377280574,1754316918572,-500.0,0.00030983,2]
[377280575,1754316918603,-500.0,0.00030983,2]
[377280576,1754316918633,-500.0,0.00030983,2]
[377280577,1754316918668,-284.97707114,0.00030983,2]
[377280578,1754316918799,-215.02292886,0.00030983,2]
[377280579,1754316918809,-289.22363949,0.00030983,2]
[377280580,1754316918821,-103.26489608,0.00030983,2]
[377280581,1754316918836,-107.51146443,0.00030983,2]
[377280582,1754316918846,-392.48853557,0.00030983,2]
[377280583,1754316918862,-107.51146443,0.00030983,2]
[377280584,1754316918872,-392.48853557,0.00030983,2]
[377280585,1754316918883,-107.51146443,0.00030983,2]
[377280586,1754316918892,-392.48853557,0.00030983,2]
[377280587,1754316918904,-107.51146443,0.00030983,2]
[377280588,1754316918913,-392.48853557,0.00030983,2]
[377280589,1754316918924,-107.51146443,0.00030983,2]
[377280590,1754316918934,-392.48853557,0.00030983,2]
[377280591,1754316918947,-107.51146443,0.00030983,2]
[377280592,1754316918957,-392.48853557,0.00030983,2]
[377280593,1754316918973,-107.51146443,0.00030983,2]